fUST/lending_fUST_20250926
["ID","MTS","AMOUNT","RATE_DAILY","PERIOD"]
[387810512,1758886237599,-480.0,0.00038356,30]
[387810513,1758886237609,-1553.02,0.00038356,30]
[387810514,1758886237618,-480.0,0.00038356,30]
[387810515,1758886237627,-480.0,0.00038356,30]
[387810516,1758886237637,-480.0,0.00038356,30]
[387810517,1758886237646,-480.0,0.00038356,30]
[387810518,1758886237655,-480.0,0.00038356,30]
[387810519,1758886237665,-487.59612358,0.00038356,30]
[387810520,1758886237674,-480.0,0.00038356,30]
[387810521,1758886237683,-481.36779511,0.00038356,30]
[387810522,1758886237692,-480.0,0.00038356,30]
[387810523,1758886237701,-480.0,0.00038356,30]
[387810524,1758886237711,-480.0,0.00038356,30]
[387810525,1758886237720,-1042.28,0.00038356,21]
[387810526,1758886237729,-480.0,0.00038356,30]
[387810527,1758886237738,-480.0,0.00038356,30]
[387810528,1758886237747,-480.0,0.00038356,30]
[387810529,1758886237756,-480.0,0.00038356,30]
[387810530,1758886237765,-480.0,0.00038356,30]
[387810531,1758886237774,-480.0,0.00038356,30]
[387810532,1758886237784,-480.0,0.00038356,30]
[387810533,1758886237793,-480.0,0.00038356,30]
[387810534,1758886237802,-156.42299935,0.00038356,30]
[387810535,1758886237811,-513.82,0.00038356,30]
[387810536,1758886237820,-480.0,0.00038356,30]
[387810537,1758886237830,-975.79,0.00038356,30]
[387810538,1758886237839,-487.57938362,0.00038356,30]
[387810539,1758886237848,-956.88,0.00038356,30]
[387810540,1758886237858,-1622.58,0.00038356,30]
[387810541,1758886237870,-480.0,0.00038356,30]
[387810542,1758886237878,-742.63,0.00038356,30]
[387810543,1758886237887,-480.0,0.00038356,30]
[387810544,1758886237896,-480.0,0.00038356,30]
[387810545,1758886237906,-480.0,0.00038356,30]
[387810546,1758886237915,-923.8,0.00038356,30]
[387810547,1758886237924,-480.0,0.00038356,30]
[387810548,1758886237934,-480.93889753,0.00038356,30]
[387810549,1758886237944,-480.0,0.00038356,30]
[387810550,1758886237955,-960.74,0.00038356,30]
[387810551,1758886237964,-480.0,0.00038356,30]
[387810552,1758886237973,-480.0,0.00038356,30]
[387810553,1758886237983,-481.07329798,0.00038356,30]
[387810554,1758886237993,-481.92508397,0.00038356,30]
[387810555,1758886238002,-1015.2,0.00038356,30]
[387810556,1758886238011,-480.0,0.00038356,30]
[387810557,1758886238020,-480.0,0.00038356,30]
[387810558,1758886238029,-481.45917827,0.00038356,30]
[387810559,1758886238038,-480.0,0.00038356,30]
[387810560,1758886238047,-480.42353782,0.00038356,30]
[387810561,1758886238055,-480.0,0.00038356,30]
[387810562,1758886238064,-692.2,0.00038356,30]
[387810563,1758886238073,-480.0,0.00038356,30]
[387810564,1758886238083,-480.0,0.00038356,30]
[387810565,1758886238092,-480.0,0.00038356,30]
[387810566,1758886238102,-480.0,0.00038356,30]
[387810567,1758886238111,-480.0,0.00038356,30]
[387810568,1758886238120,-480.0,0.00038356,30]
[387810569,1758886238130,-480.0,0.00038356,30]
[387810570,1758886238139,-480.0,0.00038356,30]
[387810571,1758886238148,-490.30198512,0.00038356,30]
[387810572,1758886238157,-480.0,0.00038356,30]
[387810573,1758886238167,-480.0,0.00038356,30]
[387810574,1758886238176,-480.0,0.00038356,30]
[387810575,1758886238185,-480.0,0.00038356,30]
[387810576,1758886238195,-480.0,0.00038356,30]
[387810577,1758886238204,-480.0,0.00038356,30]
[387810578,1758886238213,-1057.22,0.00038356,30]
[387810579,1758886238222,-480.0,0.00038356,30]
[387810580,1758886238231,-480.0,0.00038356,30]
[387810581,1758886238242,-639.89,0.00038356,30]
[387810582,1758886238251,-480.0,0.00038356,30]
[387810583,1758886238261,-1614.22,0.00038356,3]
[387810584,1758886238270,-510.4263368,0.00038356,30]
[387810585,1758886238279,-480.0,0.00038356,30]
[387810586,1758886238289,-481.31616321,0.00038356,30]
[387810587,1758886238298,-480.0,0.00038356,30]
[387810588,1758886238307,-482.67858676,0.00038356,30]
[387810589,1758886238316,-483.28756732,0.00038356,20]
[387810590,1758886238326,-216.33694867,0.00038356,30]
[387810591,1758886238335,-480.0,0.00038356,30]
[387810592,1758886238344,-482.37495146,0.00038356,30]
[387810593,1758886238353,-480.0,0.00038356,30]
[387810594,1758886238362,-1131.75,0.00038356,30]
[387810595,1758886238371,-383.33067717,0.00038356,30]
[387810596,1758886238395,-96.66932283,0.00038356,30]
[387810597,1758886238404,-480.0,0.00038356,30]
[387810598,1758886238413,-480.0,0.00038356,30]
[387810599,1758886238423,-480.0,0.00038356,30]
[387810600,1758886238432,-481.2879613,0.00038356,30]
[387810601,1758886238442,-480.0,0.00038356,30]
[387810602,1758886238451,-480.0,0.00038356,30]
[387810603,1758886238460,-486.10190182,0.00038356,30]
[387810604,1758886238470,-480.0,0.00038356,30]
[387810605,1758886238479,-1509.77,0.00038356,30]
[387810606,1758886238490,-1069.66481405,0.00038356,30]
[387810607,1758886238501,-1037.81518595,0.00038356,30]
[387810608,1758886238511,-349.52763898,0.00038356,30]
[387810609,1758886238520,-480.0,0.00038356,30]
[387810610,1758886238529,-480.0,0.00038356,30]
[387810611,1758886238538,-466.85688113,0.00038356,30]
[387810612,1758886238548,-480.0,0.00038356,30]
[387810613,1758886238557,-480.0,0.00038356,30]
[387810614,1758886238566,-480.0,0.00038356,30]
[387810615,1758886238575,-480.0,0.00038356,30]
[387810616,1758886238584,-480.0,0.00038356,30]
[387810617,1758886238593,-1117.68,0.00038356,30]
[387810618,1758886238602,-480.0,0.00038356,30]
[387810619,1758886238611,-480.0,0.00038356,30]
[387810620,1758886238620,-480.0,0.00038356,30]
[387810621,1758886238629,-521.83630848,0.00038356,30]
[387810622,1758886238638,-480.0,0.00038356,30]
[387810623,1758886238647,-480.0,0.00038356,30]
[387810624,1758886238655,-848.18,0.00038356,30]
[387810625,1758886238664,-848.18,0.00038356,30]
[387810626,1758886238674,-3600.19773309,0.00038356,30]
[387810627,1758886238685,-713.55226691,0.00038356,30]
[387810628,1758886238695,-848.18,0.00038356,30]
[387810629,1758886238704,-129.86772309,0.00038356,30]
[387810630,1758886238730,-718.31227691,0.00038356,30]
[387810631,1758886238740,-449.32983611,0.00038356,30]
[387810634,1758886239510,-200.09304722,0.0002807,2]
[387810635,1758886239520,-500.0,0.0002807,2]
[387810636,1758886239530,-500.0,0.00032877,7]
[387810637,1758886239539,-292.84300373,0.00032877,7]
[387810638,1758886239548,-398.85016389,0.00038356,30]
[387810639,1758886239557,-5619.58,0.00038356,30]
[387810640,1758886239566,-848.18,0.00038356,30]
[387810641,1758886239576,-848.18,0.00038356,30]
[387810642,1758886239585,-848.18,0.00038356,30]
[387810643,1758886239595,-480.0,0.00038356,30]
[387810644,1758886239605,-848.18,0.00038356,30]
[387810645,1758886239615,-848.18,0.00038356,30]
[387810647,1758886239625,-848.18,0.00038356,30]
[387810649,1758886239634,-848.18,0.00038356,30]
[387810651,1758886239643,-848.18,0.00038356,30]
[387810653,1758886239654,-848.18,0.00038356,30]
[387810655,1758886239663,-848.18,0.00038356,30]
[387810657,1758886239673,-492.19616313,0.00038356,30]
[387810659,1758886239682,-481.71940476,0.00038356,30]
[387810660,1758886239692,-398.51809774,0.00038356,30]
[387810661,1758886239703,-81.48190226,0.00038356,30]
[387810662,1758886239713,-480.0,0.00038356,30]
[387810663,1758886239722,-480.0,0.00038356,30]
[387810664,1758886239731,-5129.75,0.00038356,30]
[387810666,1758886239742,-480.0,0.00038356,30]
[387810668,1758886239751,-666.88,0.00038356,30]
[387810670,1758886239760,-480.0,0.00038356,30]
[387810672,1758886239769,-480.0,0.00038356,30]
[387810674,1758886239779,-480.0,0.00038356,30]
[387810676,1758886239787,-480.0,0.00038356,30]
[387810678,1758886239796,-480.0,0.00038356,30]
[387810680,1758886239805,-481.74332867,0.00038356,30]
[387810682,1758886239815,-1231.34,0.00038356,30]
[387810684,1758886239824,-480.0,0.00038356,30]
[387810686,1758886239833,-480.0,0.00038356,30]
[387810688,1758886239842,-480.0,0.00038356,30]
[387810690,1758886239852,-480.0,0.00038356,30]
[387810692,1758886239865,-510.99,0.00038356,30]
[387810694,1758886239874,-480.0,0.00038356,30]
[387810695,1758886239883,-480.0,0.00038356,30]
[387810696,1758886239892,-1043.053731,0.00038356,2]
[387810697,1758886239901,-804.86574371,0.00038363,3]
[387810698,1758886239911,-500.0,0.00038373,5]
[387810699,1758886239921,-500.0,0.00038373,5]
[387810701,1758886239931,-500.0,0.00038373,5]
[387810702,1758886239942,-502.30335504,0.00038373,2]
[387810703,1758886239951,-500.0,0.00038373,5]
[387810704,1758886239959,-500.0,0.00038373,5]
[387810705,1758886239968,-500.0,0.00038373,5]
[387810706,1758886239977,-500.0,0.00038373,5]
[387810708,1758886239987,-500.0,0.00038373,5]
[387810709,1758886239997,-502.67153876,0.00038373,5]
[387810710,1758886240006,-500.0,0.00038373,5]
[387810711,1758886240015,-500.0,0.00038373,5]
[387810713,1758886240024,-500.0,0.00038373,5]
[387810715,1758886240035,-160.0,0.000384,30]
[387810716,1758886240044,-160.0,0.000384,3]
[387810717,1758886240053,-168.0,0.00038411,2]
[387810718,1758886240062,-467.99215888,0.00038445,7]
[387810719,1758886240072,-210.70990657,0.0003847,120]
[387810720,1758886240081,-848.18,0.00038529,30]
[387810721,1758886240090,-500.0,0.0003853,30]
[387810722,1758886240099,-3219.46297484,0.0003862,3]
[387810723,1758886240109,-500.0,0.00038629,30]
[387810724,1758886240118,-500.0,0.00038629,30]
[387810727,1758886240128,-500.0,0.00038629,30]
[387810728,1758886240137,-848.18,0.00038629,30]
[387810729,1758886240146,-253.6307261,0.00038629,30]
[387810730,1758886240157,-594.5492739,0.00038629,30]
[387810731,1758886240165,-346.3307265,0.00038629,30]
[387810733,1758886240181,-501.8492735,0.00038629,30]
[387810734,1758886240190,-848.18,0.00038629,30]
[387810735,1758886240199,-848.18,0.00038629,30]
[387810736,1758886240208,-848.18,0.00038629,30]
[387810737,1758886240294,-848.18,0.00038629,30]
[387810738,1758886240306,-848.3772212,0.00038629,30]
[387810739,1758886240315,-490.72479297,0.0003863,30]
[387810740,1758886240324,-480.0,0.0003863,30]
[387810741,1758886240333,-200.0,0.0003863,30]
[387810742,1758886240343,-480.0,0.0003863,30]
[387810743,1758886240352,-480.0,0.0003863,30]
[387810744,1758886240361,-480.0,0.0003863,30]
[387810745,1758886240371,-480.0,0.0003863,30]
[387810746,1758886240380,-300.32871233,0.0003863,30]
[387810747,1758886240400,-179.67128767,0.0003863,30]
[387810748,1758886240410,-451.87375805,0.0003863,30]
[387810749,1758886240419,-480.0,0.0003863,30]
[387810750,1758886240428,-480.0,0.0003863,30]
[387810751,1758886240438,-480.0,0.0003863,30]
[387810752,1758886240447,-480.0,0.0003863,30]
[387810753,1758886240456,-547.10326821,0.0003863,30]
[387810754,1758886240466,-480.0,0.0003863,30]
[387810755,1758886240476,-480.0,0.0003863,30]
[387810756,1758886240485,-480.0,0.0003863,30]
[387810757,1758886240494,-480.0,0.0003863,30]
[387810758,1758886240503,-490.64407473,0.0003863,30]
[387810759,1758886240513,-480.0,0.0003863,30]
[387810760,1758886240522,-480.0,0.0003863,30]
[387810761,1758886240531,-480.0,0.0003863,30]
[387810762,1758886240541,-480.0,0.0003863,30]
[387810763,1758886240550,-480.0,0.0003863,30]
[387810764,1758886240559,-480.0,0.0003863,30]
[387810765,1758886240568,-480.0,0.0003863,30]
[387810766,1758886240578,-369.63669234,0.0003863,30]
[387810767,1758886240587,-480.0,0.0003863,30]
[387810768,1758886240596,-480.0,0.0003863,30]
[387810769,1758886240606,-1185.5,0.0003863,30]
[387810770,1758886240616,-480.0,0.0003863,30]
[387810771,1758886240626,-716.53,0.0003863,30]
[387810772,1758886240635,-480.0,0.0003863,30]
[387810774,1758886240645,-518.02,0.0003863,30]
[387810776,1758886240654,-480.0,0.0003863,30]
[387810778,1758886240663,-480.0,0.0003863,30]
[387810779,1758886240671,-480.0,0.0003863,30]
[387810780,1758886240681,-164.62,0.0003863,2]
[387810781,1758886240690,-480.0,0.0003863,30]
[387810782,1758886240699,-548.41,0.0003863,30]
[387810783,1758886240708,-480.0,0.0003863,30]
[387810784,1758886240717,-480.0,0.0003863,30]
[387810785,1758886240727,-487.63870331,0.0003863,30]
[387810786,1758886240736,-480.0,0.0003863,30]
[387810787,1758886240746,-1173.31,0.0003863,30]
[387810788,1758886240755,-480.0,0.0003863,30]
[387810789,1758886240765,-480.0,0.0003863,30]
[387810790,1758886240774,-480.0,0.0003863,30]
[387810791,1758886240784,-400.0,0.0003863,30]
[387810792,1758886240793,-519.53102677,0.0003863,30]
[387810793,1758886240803,-480.0,0.0003863,30]
[387810794,1758886240813,-480.0,0.0003863,30]
[387810795,1758886240822,-480.0,0.0003863,30]
[387810796,1758886240831,-480.0,0.0003863,30]
[387810797,1758886240841,-184.99406143,0.0003863,30]
[387810798,1758886240850,-480.0,0.0003863,30]
[387810799,1758886240863,-480.0,0.0003863,30]
[387810800,1758886240883,-480.0,0.0003863,30]
[387810801,1758886240894,-480.0,0.0003863,30]
[387810802,1758886240903,-480.0,0.0003863,30]
[387810803,1758886240912,-491.88923533,0.0003863,30]
[387810804,1758886240921,-480.0,0.0003863,30]
[387810805,1758886240930,-951.8,0.0003863,30]
[387810806,1758886240940,-480.0,0.0003863,30]
[387810807,1758886240949,-480.0,0.0003863,30]
[387810808,1758886240959,-480.0,0.0003863,30]
[387810809,1758886240968,-480.0,0.0003863,30]
[387810810,1758886240978,-480.0,0.0003863,30]
[387810811,1758886240987,-480.0,0.0003863,30]
[387810812,1758886240996,-480.0,0.0003863,30]
[387810813,1758886241006,-480.0,0.0003863,30]
[387810814,1758886241016,-480.0,0.0003863,30]
[387810815,1758886241025,-490.55065472,0.0003863,30]
[387810816,1758886241034,-480.0,0.0003863,30]
[387810817,1758886241043,-480.0,0.0003863,30]
[387810818,1758886241052,-480.0,0.0003863,30]
[387810819,1758886241062,-1250.3,0.0003863,30]
[387810820,1758886241071,-480.0,0.0003863,30]
[387810821,1758886241080,-480.0,0.0003863,30]
[387810822,1758886241090,-480.0,0.0003863,30]
[387810823,1758886241099,-480.0,0.0003863,30]
[387810824,1758886241108,-481.5238554,0.0003863,30]
[387810825,1758886241118,-480.0,0.0003863,30]
[387810826,1758886241128,-480.0,0.0003863,30]
[387810827,1758886241137,-480.0,0.0003863,30]
[387810828,1758886241147,-480.0,0.0003863,30]
[387810829,1758886241156,-480.0,0.0003863,30]
[387810830,1758886241166,-528.8572993,0.0003863,30]
[387810831,1758886241175,-480.0,0.0003863,30]
[387810832,1758886241184,-417.09314025,0.0003863,30]
[387810833,1758886241193,-292.64476553,0.0003863,30]
[387810834,1758886241203,-480.0,0.0003863,30]
[387810835,1758886241212,-480.0,0.0003863,30]
[387810836,1758886241221,-480.0,0.0003863,30]
[387810837,1758886241230,-480.0,0.0003863,30]
[387810838,1758886241239,-480.0,0.0003863,30]
[387810839,1758886241248,-480.0,0.0003863,30]
[387810840,1758886241259,-480.29568563,0.0003863,30]
[387810841,1758886241268,-480.05789027,0.0003863,30]
[387810842,1758886241278,-481.90425721,0.0003863,90]
[387810843,1758886241288,-480.0,0.0003863,30]
[387810844,1758886241298,-480.0,0.0003863,30]
[387810845,1758886241307,-480.0,0.0003863,30]
[387810846,1758886241316,-480.0,0.0003863,30]
[387810847,1758886241325,-481.34412802,0.0003863,30]
[387810848,1758886241334,-480.0,0.0003863,30]
[387810849,1758886241343,-480.0,0.0003863,30]
[387810850,1758886241353,-480.0,0.0003863,30]
[387810851,1758886241362,-480.0,0.0003863,30]
[387810852,1758886241371,-480.0,0.0003863,30]
[387810853,1758886241381,-480.0,0.0003863,30]
[387810854,1758886241390,-531.24,0.0003863,30]
[387810855,1758886241399,-480.0,0.0003863,30]
[387810856,1758886241408,-480.0,0.0003863,30]
[387810857,1758886241418,-483.5695903,0.0003863,30]
[387810858,1758886241427,-597.1713463,0.0003863,30]
[387810859,1758886241436,-482.4485428,0.0003863,30]
[387810860,1758886241446,-480.0,0.0003863,30]
[387810861,1758886241455,-483.22281443,0.0003863,30]
[387810862,1758886241464,-481.29969116,0.0003863,30]
[387810863,1758886241473,-483.80710909,0.0003863,30]
[387810864,1758886241483,-625.12614466,0.0003863,30]
[387810865,1758886241493,-246.21165729,0.0003863,30]
[387810866,1758886241502,-510.74459486,0.0003863,30]
[387810867,1758886241511,-519.19,0.0003863,30]
[387810868,1758886241520,-480.0,0.0003863,30]
[387810869,1758886241529,-480.0,0.0003863,30]
[387810870,1758886241537,-568.21510135,0.0003863,30]
[387810871,1758886241546,-480.0,0.0003863,30]
[387810872,1758886241556,-1257.23,0.0003863,30]
[387810873,1758886241565,-480.0,0.0003863,30]
[387810874,1758886241574,-482.90422768,0.0003863,30]
[387810875,1758886241584,-480.0,0.0003863,30]
[387810876,1758886241594,-480.0,0.0003863,30]
[387810877,1758886241604,-480.0,0.0003863,30]
[387810878,1758886241614,-483.46042708,0.0003863,30]
[387810879,1758886241623,-480.0,0.0003863,30]
[387810880,1758886241633,-480.0,0.0003863,30]
[387810881,1758886241642,-480.0,0.0003863,30]
[387810882,1758886241653,-480.0,0.0003863,30]
[387810883,1758886241663,-480.0,0.0003863,30]
[387810884,1758886241671,-483.72144609,0.0003863,30]
[387810885,1758886241748,-480.0,0.0003863,30]
[387810886,1758886241758,-480.0,0.0003863,30]
[387810887,1758886241767,-480.0,0.0003863,30]
[387810888,1758886241777,-480.0,0.0003863,30]
[387810889,1758886241786,-480.0,0.0003863,30]
[387810890,1758886241796,-489.27853902,0.0003863,30]
[387810891,1758886241805,-4563.8,0.0003863,30]
[387810892,1758886241815,-1140.79,0.0003863,30]
[387810893,1758886241824,-1477.84,0.0003863,30]
[387810894,1758886241833,-949.16,0.0003863,30]
[387810895,1758886241842,-480.0,0.0003863,30]
[387810896,1758886241852,-927.1,0.0003863,30]
[387810897,1758886241863,-2921.82,0.0003863,30]
[387810898,1758886241872,-1657.92,0.0003863,30]
[387810899,1758886241882,-914.89,0.0003863,30]
[387810900,1758886241891,-480.0,0.0003863,30]
[387810902,1758886241901,-480.0,0.0003863,30]
[387810903,1758886241910,-480.0,0.0003863,30]
[387810904,1758886241919,-480.0,0.0003863,30]
[387810905,1758886241930,-480.0,0.0003863,30]
[387810906,1758886241939,-480.0,0.0003863,30]
[387810907,1758886241949,-480.0,0.0003863,30]
[387810908,1758886241958,-480.0,0.0003863,30]
[387810909,1758886241967,-484.13235817,0.0003863,30]
[387810910,1758886241976,-480.0,0.0003863,30]
[387810911,1758886241986,-2209.22,0.0003863,30]
[387810912,1758886241998,-461.62467705,0.0003863,30]
[387810913,1758886242007,-480.0,0.0003863,30]
[387810914,1758886242016,-480.0,0.0003863,30]
[387810915,1758886242026,-480.0,0.0003863,30]
[387810916,1758886242035,-480.0,0.0003863,30]
[387810917,1758886242044,-481.2502324,0.0003863,30]
[387810918,1758886242053,-480.0,0.0003863,30]
[387810919,1758886242062,-480.0,0.0003863,30]
[387810921,1758886242071,-485.88724093,0.0003863,30]
[387810923,1758886242081,-480.0,0.0003863,30]
[387810924,1758886242090,-480.0,0.0003863,30]
[387810926,1758886242099,-480.0,0.0003863,30]
[387810928,1758886242109,-480.0,0.0003863,30]
[387810931,1758886242118,-482.42697761,0.0003863,30]
[387810933,1758886242128,-614.02247699,0.0003863,30]
[387810934,1758886242137,-480.0,0.0003863,30]
[387810935,1758886242147,-483.81939639,0.0003863,30]
[387810936,1758886242156,-228.15448173,0.0003863,30]
[387810937,1758886242165,-480.0,0.0003863,30]
[387810938,1758886242174,-191.20903992,0.0003863,30]
[387810939,1758886242183,-497.84592773,0.0003863,30]
[387810940,1758886242193,-480.0,0.0003863,30]
[387810941,1758886242202,-775.73,0.0003863,30]
[387810942,1758886242211,-667.41,0.0003863,30]
[387810943,1758886242221,-1804.54,0.0003863,30]
[387810944,1758886242230,-480.0,0.0003863,30]
[387810945,1758886242239,-480.0,0.0003863,30]
[387810946,1758886242249,-480.0,0.0003863,30]
[387810947,1758886242258,-890.02,0.0003863,30]
[387810948,1758886242267,-480.0,0.0003863,30]
[387810949,1758886242276,-344.76409088,0.0003863,30]
[387810950,1758886242286,-911.51,0.0003863,30]
[387810951,1758886242295,-489.8736434,0.0003863,30]
[387810952,1758886242304,-286.15268475,0.0003863,30]
[387810953,1758886242314,-480.0,0.0003863,30]
[387810954,1758886242323,-3647.69,0.0003863,30]
[387810955,1758886242332,-1929.82,0.0003863,30]
[387810956,1758886242342,-480.0,0.0003863,30]
[387810957,1758886242352,-1139.95,0.0003863,30]
[387810959,1758886242361,-480.0,0.0003863,30]
[387810960,1758886242371,-480.0,0.0003863,30]
[387810961,1758886242380,-480.0,0.0003863,30]
[387810962,1758886242388,-480.0,0.0003863,30]
[387810964,1758886242398,-480.0,0.0003863,30]
[387810966,1758886242407,-480.0,0.0003863,30]
[387810968,1758886242416,-480.0,0.0003863,30]
[387810970,1758886242425,-672.24,0.0003863,30]
[387810972,1758886242435,-480.0,0.0003863,30]
[387810974,1758886242444,-480.67548141,0.0003863,30]
[387810976,1758886242453,-480.0,0.0003863,30]
[387810978,1758886242462,-481.88369102,0.0003863,30]
[387810980,1758886242471,-1456.76,0.0003863,30]
[387810982,1758886242481,-480.0,0.0003863,30]
[387810984,1758886242491,-1256.61,0.0003863,30]
[387810986,1758886242501,-480.0,0.0003863,30]
[387810988,1758886242511,-480.0,0.0003863,30]
[387810990,1758886242521,-480.0,0.0003863,30]
[387810992,1758886242530,-480.0,0.0003863,30]
[387810994,1758886242539,-480.0,0.0003863,30]
[387810996,1758886242549,-1058.01,0.0003863,30]
[387810998,1758886242558,-480.0,0.0003863,30]
[387811000,1758886242568,-531.16,0.0003863,30]
[387811002,1758886242579,-480.0,0.0003863,30]
[387811004,1758886242588,-707.41,0.0003863,30]
[387811006,1758886242597,-481.29147871,0.0003863,30]
[387811008,1758886242607,-480.0,0.0003863,30]
[387811010,1758886242616,-481.31576578,0.0003863,30]
[387811012,1758886242625,-480.0,0.0003863,30]
[387811014,1758886242635,-480.0,0.0003863,30]
[387811015,1758886242644,-480.0,0.0003863,30]
[387811018,1758886242654,-482.78296115,0.0003863,30]
[387811020,1758886242664,-480.79755097,0.0003863,30]
[387811022,1758886242674,-157.34098567,0.0003863,30]
[387811024,1758886242684,-1553.02,0.0003863,30]
[387811026,1758886242694,-483.42732799,0.0003863,30]
[387811028,1758886242704,-482.26806603,0.0003863,30]
[387811030,1758886242714,-480.0,0.0003863,30]
[387811032,1758886242723,-480.0,0.0003863,30]
[387811034,1758886242733,-480.0,0.0003863,30]
[387811036,1758886242744,-497.6138671,0.0003863,30]
[387811038,1758886242754,-480.0,0.0003863,30]
[387811040,1758886242763,-480.0,0.0003863,30]
[387811041,1758886242773,-481.90066724,0.0003863,30]
[387811042,1758886242783,-1042.28,0.0003863,21]
[387811043,1758886242793,-480.0,0.0003863,30]
[387811044,1758886242802,-520.46315698,0.0003863,30]
[387811045,1758886242812,-482.42855427,0.0003863,30]
[387811046,1758886242822,-480.0,0.0003863,30]
[387811047,1758886242831,-480.0,0.0003863,30]
[387811048,1758886242841,-480.0,0.0003863,30]
[387811049,1758886242850,-480.0,0.0003863,30]
[387811050,1758886242863,-480.0,0.0003863,30]
[387811051,1758886242873,-513.82,0.0003863,30]
[387811052,1758886242882,-480.0,0.0003863,30]
[387811053,1758886242892,-975.79,0.0003863,30]
[387811054,1758886242902,-956.88,0.0003863,30]
[387811055,1758886242912,-1622.58,0.0003863,30]
[387811056,1758886242921,-481.36546413,0.0003863,30]
[387811057,1758886242932,-742.63,0.0003863,30]
[387811058,1758886242941,-480.0,0.0003863,30]
[387811059,1758886242951,-480.72210555,0.0003863,30]
[387811060,1758886242960,-480.0,0.0003863,30]
[387811061,1758886242970,-923.8,0.0003863,30]
[387811062,1758886242979,-180.33708665,0.0003863,30]
[387811063,1758886242989,-960.74,0.0003863,30]
[387811064,1758886242999,-481.4287824,0.0003863,30]
[387811065,1758886243008,-483.12120217,0.0003863,30]
[387811066,1758886243017,-1015.2,0.0003863,30]
[387811071,1758886243091,-480.0,0.0003863,30]
[387811073,1758886243101,-487.16309543,0.0003863,30]
[387811075,1758886243110,-480.0,0.0003863,30]
[387811077,1758886243119,-480.0,0.0003863,30]
[387811079,1758886243128,-692.2,0.0003863,30]
[387811081,1758886243138,-480.0,0.0003863,30]
[387811083,1758886243147,-480.0,0.0003863,30]
[387811086,1758886243156,-480.0,0.0003863,30]
[387811088,1758886243166,-480.0,0.0003863,30]
[387811090,1758886243175,-481.61719144,0.0003863,30]
[387811092,1758886243184,-480.0,0.0003863,30]
[387811094,1758886243193,-480.0,0.0003863,30]
[387811096,1758886243202,-480.0,0.0003863,30]
[387811097,1758886243211,-480.0,0.0003863,30]
[387811098,1758886243220,-495.90447029,0.0003863,30]
[387811099,1758886243229,-480.0,0.0003863,30]
[387811100,1758886243239,-480.0,0.0003863,30]
[387811102,1758886243248,-480.0,0.0003863,30]
[387811103,1758886243257,-1057.22,0.0003863,30]
[387811104,1758886243267,-480.0,0.0003863,30]
[387811105,1758886243276,-480.0,0.0003863,30]
[387811106,1758886243286,-480.0,0.0003863,30]
[387811107,1758886243295,-639.89,0.0003863,30]
[387811108,1758886243304,-480.0,0.0003863,30]
[387811109,1758886243313,-1614.22,0.0003863,3]
[387811110,1758886243322,-482.30532657,0.0003863,30]
[387811111,1758886243331,-484.7808172,0.0003863,30]